bitfinex-derivatives/quotes_ETHF0:USTF0_20250919
["timestamp","ask_amount","ask_price","bid_price","bid_amount"]
[1758291927016,0.23185387,4543.4,4543.3,1.13778]
[1758291927222,0.4986,4543.8,4543.7,1.13775]
[1758291927417,0.73041649,4543.8,4543.7,1.13775]
[1758291927617,0.93351649,4543.8,4543.7,1.13775]
[1758291928620,0.7485,4544.0,4543.9,0.7252]
[1758291929121,35.668,4545.3,4543.9,0.7252]
[1758291929122,0.3289,4545.0,4544.9,0.60414]
[1758291929416,0.755,4545.0,4544.9,1.12104]
[1758291929717,0.7256,4544.8,4544.7,0.39585]
[1758291929923,0.3124,4544.7,4544.6,0.39586]
[1758291930123,0.7256,4544.7,4544.6,0.39586]
[1758291930420,0.7256,4544.7,4544.6,0.60416]
[1758291931320,0.7256,4544.7,4544.6,0.39586]
[1758291931520,0.7256,4544.7,4544.6,1.12106]
[1758291932422,0.7256,4544.7,4544.6,0.81426]
[1758291932923,0.7256,4544.7,4544.6,0.60416]
[1758291933222,0.5245,4544.7,4544.6,1.12106]
[1758291933820,0.8536,4544.0,4543.9,3.81202]
[1758291934014,0.8536,4544.0,4543.9,0.39592]
[1758291934417,0.8536,4544.0,4543.7,0.39595]
[1758291934718,0.7256,4543.8,4543.7,0.39595]
[1758291935018,0.128,4544.0,4543.5,0.39596]
[1758291935019,0.7256,4543.6,4543.5,0.39596]
[1758291935216,0.224,4543.7,4543.6,0.7252]
[1758291935722,0.4361,4543.7,4543.6,0.7252]
[1758291935925,0.7485,4543.7,4543.6,0.7252]
[1758291936124,0.9496,4543.7,4543.6,0.4184]
[1758291936418,0.9496,4543.7,4543.6,0.7252]
[1758291937018,0.7485,4543.7,4543.6,0.7252]
[1758291937218,0.4361,4543.7,4543.6,0.7252]
[1758291937615,0.224,4543.7,4543.6,0.7252]
[1758291938020,0.224,4543.7,4543.6,3.933]
[1758291938423,0.7485,4544.1,4544.0,0.7252]
[1758291938629,0.98038822,4544.1,4544.0,1.12112]
[1758291938820,0.66798822,4544.1,4544.0,1.12112]
[1758291939321,0.98038822,4544.1,4544.0,1.12112]
[1758291940028,0.224,4544.1,4544.0,1.19122]
[1758291940417,0.224,4544.1,4544.0,1.12112]
[1758291940617,0.4132,4544.7,4544.6,0.39587]
[1758291940827,1.18151267,4544.7,4544.6,0.39587]
[1758291941317,1.18151267,4544.7,4544.6,0.81427]
[1758291942121,1.18151267,4544.7,4544.6,0.60417]
[1758291942519,1.18151267,4544.7,4544.6,1.12107]
[1758291943428,1.18151267,4544.7,4544.6,0.81427]
[1758291944430,1.18151267,4544.7,4544.6,0.60417]
[1758291944824,1.18151267,4544.7,4544.6,0.39587]
[1758291945020,0.7256,4544.6,4544.5,0.2083]
[1758291945328,0.7256,4544.6,4544.5,0.81428]
[1758291945729,0.95682954,4544.6,4544.5,0.81428]
[1758291945930,0.95683373,4544.6,4544.5,0.81428]
[1758291946923,0.9496,4544.6,4544.5,0.81428]
[1758291947224,1.1808817,4544.6,4544.5,1.12108]
[1758291947416,0.9568817,4544.6,4544.5,1.12108]
[1758291947623,1.1808817,4544.6,4544.5,1.12108]
[1758291948027,1.1808817,4544.6,4544.5,0.81428]
[1758291948525,0.9568817,4544.6,4544.5,0.2083]
[1758291948721,0.5412,4544.5,4543.8,0.3068]
[1758291948925,0.7256,4543.9,4543.8,0.39594]
[1758291949118,0.7256,4543.9,4543.8,1.12114]
[1758291949322,0.7256,4543.9,4543.8,0.81434]
[1758291949527,0.7256,4543.9,4543.8,0.60424]
[1758291949928,0.95694894,4543.9,4543.8,0.60424]
[1758291951527,0.95694894,4543.9,4543.8,0.39594]
[1758291952329,0.95694894,4543.9,4543.8,0.60424]
[1758291953630,0.95694894,4543.9,4543.8,0.39594]
[1758291953833,0.8536,4543.5,4543.4,0.022]
[1758291954145,1.0776,4543.5,4543.4,0.39597]
[1758291955241,1.30921562,4543.5,4543.4,0.39597]
[1758291955646,1.30921562,4543.5,4543.4,0.60427]
[1758291955945,1.0776,4543.5,4543.4,0.60427]
[1758291956444,1.30928248,4543.5,4543.4,0.60427]
[1758291959052,1.30928248,4543.5,4543.4,0.39597]
[1758291960252,1.30928248,4543.5,4543.4,0.80727]
[1758291960438,1.30928248,4543.5,4543.4,1.12257]
[1758291961651,0.23168248,4543.5,4543.4,1.12257]
[1758291962253,1.05638248,4543.5,4543.4,0.80727]
[1758291962456,1.05638248,4543.5,4543.4,0.59657]
[1758291964154,0.7073,4543.4,4543.3,0.39598]
[1758291964453,0.93898248,4543.4,4543.3,0.39598]
[1758291965458,5.15908249,4543.4,4543.2,0.022]
[1758291965654,1.14417044,4543.3,4543.2,0.022]
[1758291965954,1.45777044,4543.3,4543.2,0.022]
[1758291966155,0.3937,4543.1,4543.0,0.39601]
[1758291966355,0.93898248,4543.1,4543.0,0.39601]
[1758291966563,1.16298248,4543.1,4543.0,0.80731]
[1758291967060,1.16298248,4543.1,4543.0,0.59661]
[1758291967254,1.16298248,4543.1,4543.0,0.39601]
[1758291967455,0.3937,4542.9,4542.8,0.59662]
[1758291967657,0.3136,4542.8,4542.5,3.2078]
[1758291967962,0.7073,4542.6,4542.5,3.2078]
[1758291968260,0.93898248,4542.6,4542.5,3.2078]
[1758291968457,0.62538248,4542.6,4541.9,3.2078]
[1758291968658,0.8247,4542.0,4541.9,3.80451]
[1758291968961,1.05638248,4542.0,4541.9,3.80451]
[1758291969158,1.05638248,4542.0,4541.9,4.01521]
[1758291969361,1.05638248,4542.0,4541.9,3.6191]
[1758291969664,1.05638248,4542.0,4541.9,3.2078]
[1758291970064,1.05638248,4542.0,4541.9,3.4084]
[1758291970564,0.93898248,4542.0,4541.9,3.9344]
[1758291970773,0.23168248,4542.0,4541.9,3.9344]
[1758291971566,0.224,4542.1,4542.0,1.2016]
[1758291971759,0.7073,4542.9,4542.8,1.12262]
[1758291971958,1.17540232,4542.9,4542.8,1.12262]
[1758291972167,1.17540232,4542.9,4542.8,0.80732]
[1758291972574,4.38320232,4542.9,4542.0,0.3153]
[1758291972770,0.5121,4542.1,4542.0,1.1227]
[1758291973267,0.7073,4542.1,4542.0,0.8074]
[1758291973669,0.7073,4542.1,4542.0,1.1227]
[1758291973864,0.5121,4542.1,4542.0,1.1227]
[1758291974167,0.7073,4542.1,4542.0,1.1227]
[1758291974365,0.7073,4542.1,4542.0,0.8074]
[1758291974565,0.7073,4542.1,4542.0,1.1227]
[1758291975564,0.7073,4542.1,4542.0,0.4113]
[1758291975773,0.7073,4541.8,4541.7,0.2226]
[1758291976070,0.5121,4541.8,4541.7,0.7266]
[1758291976369,0.3136,4542.0,4541.9,0.7266]
[1758291976772,0.5121,4542.0,4541.9,0.7266]
[1758291977463,0.75921072,4542.0,4541.9,0.7266]
[1758291978669,0.24711072,4542.0,4541.9,0.7266]
[1758291978868,0.5121,4542.4,4542.3,1.12267]
[1758291979071,0.3136,4543.1,4543.0,1.12261]
[1758291979276,0.75920536,4543.1,4543.0,1.12261]
[1758291980065,0.24710536,4543.1,4543.0,1.12261]
[1758291980874,0.24710536,4543.1,4543.0,1.23831]
[1758291981776,0.5376,4543.4,4543.3,0.80728]
[1758291982076,0.7847434,4543.4,4543.3,1.12258]
[1758291982270,0.9832434,4543.4,4543.3,1.12258]
[1758291982676,0.7592434,4543.4,4543.3,1.12258]
[1758291982872,3.3252,4544.5,4543.3,1.12258]
[1758291982873,3.7189,4544.5,4544.4,0.4113]
[1758291983370,4.0325,4544.5,4544.4,0.2006]
[1758291983571,0.8247,4544.5,4544.4,0.2006]
[1758291983873,0.8247,4544.5,4544.4,0.4113]
[1758291984076,0.8247,4544.5,4544.4,0.7266]
[1758291984574,0.8247,4544.5,4544.4,0.4113]
[1758291985274,0.8247,4544.5,4544.4,0.7266]
[1758291985777,0.8247,4544.5,4544.4,0.4113]
[1758291989882,0.8247,4544.5,4544.4,0.2006]
[1758291991981,0.7106,4544.4,4544.3,0.39589]
[1758291992183,0.7106,4544.4,4544.3,0.60699]
[1758291992571,0.7106,4544.4,4544.3,0.39589]
[1758291994083,0.7106,4543.8,4543.7,3.4189]
[1758291994283,0.7106,4543.8,4543.7,3.9407]
[1758291994776,0.7106,4543.8,4543.7,4.33665]
[1758291995882,0.7106,4543.8,4543.7,4.01745]
[1758291996279,0.7106,4543.8,4543.7,3.60375]
[1758291996480,0.7106,4543.8,4543.7,3.2078]
[1758291996783,0.3071,4543.7,4543.5,0.39596]
[1758291996982,0.3063,4544.0,4543.6,0.39596]
[1758291997182,0.7106,4543.7,4543.6,0.39596]
[1758291998081,0.7106,4543.7,4543.6,0.60706]
[1758291998384,0.7106,4543.7,4543.6,0.2111]
[1758291998984,0.7106,4543.7,4543.5,0.39596]
[1758291999284,0.7106,4543.6,4543.5,0.60706]
[1758292000080,0.7106,4543.6,4542.9,0.3192]
[1758292000285,0.7106,4543.4,4543.3,0.39598]
[1758292000684,0.7106,4543.4,4543.3,0.60708]
[1758292000986,0.7106,4543.4,4543.3,1.12888]
[1758292003687,0.5142,4543.4,4543.3,1.12888]
[1758292003874,0.3071,4543.4,4543.3,1.12888]
[1758292004079,0.7106,4543.4,4543.3,1.12888]
[1758292004285,0.7106,4543.4,4543.3,0.60708]
[1758292004784,0.7106,4543.4,4543.1,0.022]
[1758292004983,0.5142,4543.2,4543.1,0.9398]
[1758292005183,0.1243,4543.5,4543.4,0.39598]
[1758292005384,0.3314,4543.5,4543.4,0.80968]
[1758292005584,0.3314,4543.5,4543.4,1.12888]
[1758292005785,0.8349,4543.5,4543.4,1.12888]
[1758292006987,1.07616306,4543.5,4543.4,0.80968]
[1758292007187,1.07616306,4543.5,4543.4,0.2111]
[1758292007486,1.07616306,4543.5,4543.4,0.60708]
[1758292008182,1.07616306,4543.5,4543.4,0.2111]
[1758292008776,1.07616306,4543.5,4543.4,0.60708]
[1758292009090,0.4035,4543.3,4543.2,0.39599]
[1758292009286,0.95186306,4543.3,4543.2,0.39599]
[1758292009987,0.95186306,4543.3,4543.1,0.022]
[1758292010286,0.95186306,4543.2,4543.1,0.6291]
[1758292010685,0.95186306,4543.2,4543.1,0.6071]
[1758292010883,0.2071,4542.6,4542.5,3.4189]
[1758292011089,0.7106,4542.6,4542.5,3.4189]
[1758292011276,0.7106,4542.6,4542.5,4.33675]
[1758292011587,0.7106,4542.6,4542.5,3.2078]
[1758292011782,0.95225257,4542.6,4542.5,3.2078]
[1758292011982,0.95225257,4542.6,4542.5,3.60385]
[1758292012182,0.95225257,4542.6,4542.5,3.81495]
[1758292013783,0.95225257,4542.6,4542.5,3.60385]
[1758292013983,0.95225257,4542.6,4542.5,3.81495]
[1758292016089,0.95225257,4542.6,4542.5,3.4189]
[1758292017287,0.7106,4542.4,4542.3,0.022]
[1758292017487,0.95203036,4542.4,4542.3,0.2331]
[1758292017784,0.95203036,4542.4,4542.3,0.7549]
[1758292017992,0.95203036,4542.4,4542.3,0.7329]
[1758292018691,0.95203036,4542.4,4542.3,0.4137]
[1758292019196,0.95200121,4542.4,4542.3,0.4137]
[1758292019892,0.95200121,4542.4,4542.3,0.2111]
[1758292020089,8.37995121,4542.4,4541.4,0.297]
[1758292020295,0.1243,4542.5,4541.1,0.2092]
[1758292020296,0.7252,4541.2,4541.1,0.2092]
[1758292020489,0.96660121,4541.2,4541.1,0.2092]
[1758292020789,0.96660121,4541.2,4540.7,3.90101]
[1758292020990,0.3107,4540.9,4540.3,0.79914]
[1758292021187,0.5138,4540.5,4540.4,0.6999]
[1758292021382,0.7252,4540.5,4540.4,0.6999]
[1758292021587,0.5138,4540.5,4540.4,0.6999]
[1758292023294,0.848,4540.5,4540.4,0.6999]
[1758292023682,0.848,4540.5,4540.2,0.022]
[1758292025099,0.7252,4540.4,4540.3,0.60545]
[1758292026189,0.5138,4540.4,4540.3,1.09615]
[1758292026495,0.5138,4540.7,4540.6,1.09612]
[1758292026796,0.7252,4540.7,4540.6,0.6999]
[1758292027095,0.7252,4540.7,4540.6,0.4029]
[1758292027296,0.7252,4540.7,4540.6,0.6999]
[1758292027597,0.7252,4540.7,4540.6,0.4029]
[1758292027893,0.9492,4540.7,4540.6,0.4029]
[1758292028084,0.9492,4540.7,4540.6,0.2092]
[1758292028290,0.7252,4540.3,4540.2,0.022]
[1758292028685,0.3107,4540.2,4540.1,3.90106]
[1758292028891,0.5138,4540.2,4540.1,4.30396]
[1758292029692,0.6366,4540.5,4540.4,0.79914]
[1758292029996,0.5138,4540.5,4540.4,1.09614]
[1758292031191,0.1228,4541.0,4540.1,3.2078]
[1758292031192,0.7378,4540.7,4540.6,1.09612]
[1758292031498,0.5138,4540.7,4540.6,1.09612]
[1758292031997,0.7252,4540.7,4540.6,1.09612]
[1758292032193,0.7252,4540.7,4540.6,0.4029]
[1758292032392,0.7252,4540.7,4540.6,0.2092]
[1758292032592,0.1228,4540.5,4540.4,0.022]
[1758292032792,0.848,4540.5,4540.4,0.022]
[1758292032992,0.848,4540.5,4540.4,0.2312]
[1758292033195,0.848,4540.5,4540.4,0.022]
[1758292033897,0.848,4540.5,4540.4,0.2312]
[1758292034099,1.072,4540.5,4540.4,0.2312]
[1758292034293,1.072,4540.5,4540.4,0.2092]
[1758292034592,1.072,4540.5,4540.1,3.2078]
[1758292034593,0.7613,4540.5,4540.1,3.2078]
[1758292034800,0.7252,4540.2,4540.1,3.81326]
[1758292035988,0.7252,4540.2,4540.1,4.00696]
[1758292036194,0.7252,4540.2,4540.1,4.30396]
[1758292038104,0.97280177,4540.2,4540.1,4.30396]
[1758292038596,0.76140177,4540.2,4540.1,4.30396]
[1758292038800,0.24760177,4540.2,4540.1,4.30396]
[1758292038998,0.5138,4540.5,4540.4,1.09614]
[1758292039201,0.76139952,4540.5,4540.4,1.09614]
[1758292040304,0.24759952,4540.5,4540.4,1.09614]
[1758292042803,0.97279952,4540.5,4540.4,1.09614]
[1758292043001,1.09559952,4540.5,4540.4,1.09614]
[1758292043396,0.76139952,4540.5,4540.4,1.09614]
[1758292045302,1.28742039,4540.5,4540.4,1.09614]
[1758292045609,1.28746331,4540.5,4540.4,1.09614]
[1758292047804,1.49886331,4540.5,4540.4,1.09614]
[1758292049301,0.77366331,4540.5,4540.4,1.09614]
[1758292049603,0.77366331,4540.5,4540.4,1.31638]
[1758292049902,0.77366331,4540.5,4540.4,1.09614]
[1758292050104,0.77366331,4540.5,4540.4,5.31638]
[1758292050701,0.77366331,4540.5,4540.4,5.09614]
[1758292052498,0.77366331,4540.5,4540.4,5.32014]
[1758292054006,1.26516331,4540.5,4540.4,5.32014]
[1758292054207,1.60406331,4540.5,4540.4,1.09614]
[1758292054414,1.60406331,4540.5,4540.4,0.79914]
[1758292055812,1.60406331,4540.5,4540.4,0.39624]
[1758292056309,1.60406331,4540.5,4540.1,3.2078]
[1758292056511,0.4042,4540.2,4540.1,3.4189]
[1758292056811,0.73909952,4540.2,4540.1,4.29816]
[1758292057606,0.54599952,4540.2,4540.1,4.29816]
[1758292057808,0.24759952,4540.2,4540.1,4.29816]
[1758292061009,0.7026,4540.4,4540.3,1.09035]
[1758292061208,0.94522688,4540.4,4540.3,1.09035]
[1758292061513,0.94522688,4540.4,4540.3,0.80175]
[1758292061911,0.94522688,4540.4,4540.3,1.09035]
[1758292063113,0.24262688,4540.4,4540.3,1.09035]
[1758292063906,0.54102688,4540.4,4540.3,1.09035]
[1758292064113,0.73412688,4540.4,4540.3,1.09035]
[1758292064609,0.94522688,4540.4,4540.3,1.09035]
[1758292064914,0.94522688,4540.4,4540.3,0.80175]
[1758292065112,0.94522688,4540.4,4540.3,1.09035]
[1758292065607,0.24262688,4540.4,4540.3,1.09035]
[1758292066710,0.2984,4540.8,4540.3,1.09035]
[1758292067010,0.224,4541.2,4541.1,0.39618]
[1758292067011,0.4171,4541.2,4541.1,0.39618]
[1758292067207,1.48128055,4541.2,4541.1,1.09028]
[1758292067409,1.25728055,4541.2,4541.1,1.09028]
[1758292067608,0.76578055,4541.2,4541.1,1.09028]
[1758292068319,0.23689288,4541.2,4541.1,1.09028]
[1758292068512,36.3876,4541.9,4541.8,1.09021]
[1758292068710,37.15309295,4541.9,4541.8,1.09021]
[1758292069110,36.62440741,4541.9,4541.8,1.09021]
[1758292069609,36.62440741,4541.9,4541.8,0.80161]
[1758292070320,0.7026,4541.6,4541.5,0.39614]
[1758292070511,0.93940741,4541.6,4541.5,0.39614]
[1758292070907,0.93940741,4541.6,4541.5,0.60724]
[1758292071116,0.93940741,4541.6,4541.5,1.09024]
[1758292071412,0.93940741,4541.6,4541.5,4.29804]
[1758292071618,0.7026,4541.6,4541.5,4.29804]
[1758292071919,0.93905897,4541.6,4541.5,4.29804]
[1758292072315,0.7026,4541.6,4541.5,3.2078]
[1758292072618,0.93901347,4541.6,4541.5,3.2078]
[1758292073212,1.16301347,4541.6,4541.5,3.2078]
[1758292075820,1.16301347,4541.6,4541.5,3.60394]
[1758292077323,1.16301347,4541.6,4541.3,0.39615]
[1758292077523,0.7026,4541.4,4541.3,0.39615]
[1758292077822,0.93901347,4541.4,4541.3,0.39615]
[1758292078025,0.93901347,4541.4,4541.3,0.60725]
[1758292078225,0.93901347,4541.4,4541.3,1.11315]
[1758292078618,0.93901347,4541.4,4541.3,0.60725]
[1758292078814,0.92611347,4541.4,4541.3,1.10655]
[1758292079018,0.92611347,4541.4,4541.3,0.80405]
[1758292079220,0.92611347,4541.4,4540.9,0.022]
[1758292079424,0.8121,4541.0,4540.9,0.41819]
[1758292079619,1.27251044,4541.0,4540.9,0.022]
[1758292079820,0.6897,4540.9,4540.8,3.604]
[1758292080122,0.73021044,4540.9,4540.8,4.2981]
[1758292080724,0.73021044,4540.9,4540.8,1.0903]
[1758292082627,0.95421044,4540.9,4540.8,1.0903]
[1758292084323,0.73021044,4540.9,4540.8,1.0903]
[1758292086231,0.73021044,4540.9,4540.8,4.2981]
[1758292089338,0.23641044,4540.9,4540.8,4.2981]
[1758292089532,0.73027358,4541.1,4541.0,1.09028]
[1758292089730,1.25853273,4541.1,4541.0,1.09028]
[1758292090434,1.48253273,4541.1,4541.0,1.09028]
[1758292092835,1.25853273,4541.1,4541.0,1.09028]
[1758292093033,1.48253273,4541.1,4541.0,1.09028]
[1758292094731,1.67843273,4541.1,4541.0,1.09028]
[1758292095330,1.67843273,4541.1,4541.0,0.3916]
[1758292095535,0.8121,4540.5,4540.4,0.59104]
[1758292095737,1.04857358,4540.5,4540.4,0.59104]
[1758292096231,1.04857358,4540.5,4540.4,0.1948]
[1758292096433,0.6897,4540.4,4540.3,0.39624]
[1758292096733,0.92617358,4540.4,4540.3,0.39624]
[1758292098930,0.92619385,4540.4,4540.3,0.39624]
[1758292099845,0.92619385,4540.4,4540.3,0.59104]
[1758292102845,0.6897,4540.3,4540.2,0.022]
[1758292103042,0.92619385,4540.3,4540.2,0.2168]
[1758292103346,0.92619385,4540.3,4540.2,0.59105]
[1758292103540,0.92619385,4540.3,4540.2,0.1948]
[1758292103748,0.6897,4539.2,4539.1,3.4026]
[1758292104048,0.92619385,4539.2,4539.1,3.79894]
[1758292104246,0.92619385,4539.2,4539.1,3.99574]
[1758292104443,0.92619385,4539.2,4539.1,4.29824]
[1758292106344,0.6897,4539.2,4539.1,3.99574]
[1758292106843,0.6897,4539.2,4539.1,4.29824]
[1758292108745,0.1224,4539.5,4539.1,4.29824]
[1758292108943,0.7358,4539.5,4539.4,1.09402]
[1758292109143,0.97204741,4539.5,4539.4,1.09402]
[1758292111448,0.224,4539.7,4539.6,0.39631]
[1758292111649,0.641,4539.7,4539.6,4.30181]
[1758292111846,0.87714322,4539.7,4539.6,4.00841]
[1758292112156,1.18454322,4539.7,4539.6,4.00841]
[1758292112654,1.18454322,4539.7,4539.6,4.30181]
[1758292115752,0.3074,4539.6,4539.5,0.39631]
[1758292115951,1.18454322,4539.6,4539.5,0.39631]
[1758292116651,0.637,4539.5,4539.4,0.41832]
[1758292116854,1.08574322,4539.5,4539.4,0.41832]
[1758292117251,1.08574322,4539.5,4539.4,0.61092]
[1758292117759,1.30974322,4539.5,4539.4,0.90432]
[1758292118057,1.08574322,4539.5,4539.4,0.90432]
[1758292118255,1.30974322,4539.5,4539.4,0.90432]
[1758292118456,1.30974322,4539.5,4539.4,1.11602]
[1758292118657,0.96054322,4539.5,4539.4,1.11602]
[1758292118850,0.97194322,4539.5,4539.4,1.11602]
[1758292119450,0.97194322,4539.5,4539.4,1.09402]
[1758292119751,0.7358,4539.5,4539.4,1.09402]
[1758292120153,0.5118,4539.5,4539.4,1.09402]
[1758292120350,3.2078,4540.4,4539.6,1.68846]
[1758292120555,0.5118,4539.9,4539.8,1.09399]
[1758292120859,0.74795932,4539.9,4539.8,1.09399]
[1758292121753,3.9322,4540.4,4540.3,0.80054]
[1758292122052,4.92464672,4540.4,4540.3,0.80054]
[1758292123967,4.92464672,4540.4,4540.3,0.4043]
[1758292124157,4.92464672,4540.4,4540.3,0.1926]
[1758292124663,4.70064672,4540.4,4540.3,0.1926]
[1758292124863,4.92464672,4540.4,4540.3,0.58884]
[1758292125860,4.92464672,4540.4,4540.1,0.41825]
[1758292126061,0.7244,4540.2,4540.1,0.2146]
[1758292126266,1.49342272,4540.2,4540.1,0.022]
[1758292126670,0.7244,4540.1,4540.0,0.39627]
[1758292126865,1.18457955,4540.1,4540.0,0.39627]
[1758292127065,0.7244,4539.6,4539.5,0.39631]
[1758292127368,0.8496,4539.5,4539.4,0.39631]
[1758292128068,0.3074,4539.4,4539.3,0.39632]
[1758292128268,0.95042046,4539.4,4539.3,0.39632]
[1758292128770,0.95042046,4539.4,4538.9,0.2934]
[1758292128771,0.7244,4539.3,4539.2,0.39634]
[1758292128965,0.95042046,4539.3,4539.2,0.39634]
[1758292134177,0.95042046,4539.3,4539.2,0.58894]
[1758292134376,0.3296,4539.0,4538.9,0.2117]
[1758292134674,0.637,4539.0,4538.9,0.4043]
[1758292135668,0.637,4539.0,4538.9,1.03417]
[1758292136572,0.8496,4539.0,4538.9,0.80067]
[1758292137770,0.8496,4539.0,4538.9,0.58897]
[1758292137970,0.8496,4539.0,4538.9,0.39637]
[1758292137971,1.07591214,4539.0,4538.9,0.39637]
[1758292138173,1.07591214,4539.0,4538.9,0.60307]
[1758292139179,1.07591214,4539.0,4538.9,0.39637]
[1758292140072,1.60971798,4539.0,4538.9,0.39637]
[1758292140880,1.60971798,4539.0,4538.9,0.59787]
[1758292141685,1.60971798,4539.0,4538.9,0.39637]
[1758292142082,0.6861,4538.8,4538.7,0.39638]
[1758292142380,0.91241214,4538.8,4538.7,0.39638]
[1758292143477,0.6861,4538.4,4538.3,0.39641]
[1758292144681,0.91228631,4538.4,4538.3,0.39641]
[1758292144976,0.2,4538.2,4538.1,0.39643]
[1758292145179,0.8142,4538.0,4537.9,0.39645]
[1758292145480,0.8142,4538.0,4537.8,3.2078]
[1758292145481,0.6861,4537.9,4537.8,3.2078]
[1758292145877,0.91224243,4537.9,4537.8,3.2078]
[1758292146184,0.6861,4537.9,4537.8,3.2078]
[1758292146383,0.6861,4537.9,4537.8,3.60426]
[1758292146580,0.6861,4537.9,4537.8,3.4093]
[1758292147781,0.6861,4537.9,4537.8,0.2015]
[1758292147981,0.1281,4537.5,4537.3,3.6043]
[1758292148181,0.6861,4537.4,4537.3,0.39651]
[1758292148486,0.6861,4537.4,4537.3,0.59801]
[1758292148682,0.6861,4537.4,4537.3,3.80581]
[1758292149787,0.6861,4537.4,4537.3,0.59801]
[1758292150685,0.6861,4537.4,4537.3,0.79291]
[1758292151289,0.4915,4537.4,4537.3,1.02601]
[1758292152087,0.4915,4537.4,4537.3,4.23381]
[1758292152285,0.6861,4537.4,4537.3,4.00071]
[1758292154079,0.6861,4537.4,4537.3,4.23381]
[1758292155282,0.6861,4537.4,4537.3,3.6042]
[1758292155483,0.4915,4537.4,4537.3,4.00071]
[1758292155688,0.4915,4537.4,4537.3,4.23381]
[1758292155987,0.4915,4537.4,4537.3,0.79291]
[1758292155988,0.6861,4537.4,4537.3,0.79291]
[1758292156190,0.6861,4537.4,4537.3,1.02601]
[1758292156988,0.6861,4537.4,4537.3,0.79291]
[1758292158683,0.6861,4537.4,4537.3,0.39651]
[1758292159084,0.6861,4537.4,4537.3,0.59801]
[1758292159491,0.6861,4537.4,4537.3,0.79291]
[1758292161790,0.6861,4537.4,4537.3,0.39651]
[1758292162591,0.6861,4537.4,4537.2,0.39651]
[1758292162791,0.6861,4537.3,4537.2,0.39651]
[1758292162989,0.8142,4537.0,4536.9,0.59803]
[1758292163284,0.8142,4537.0,4536.8,3.60435]
[1758292163285,0.5227,4537.0,4536.8,3.60435]
[1758292163487,0.6861,4536.9,4536.8,3.80585]
[1758292166592,0.6861,4536.9,4536.8,3.4093]
[1758292167384,0.92815309,4536.9,4536.2,0.2551]
[1758292167584,0.5227,4536.5,4536.4,0.2015]
[1758292167893,0.5227,4536.5,4536.4,0.3964]
[1758292168087,0.8142,4536.5,4536.4,0.79298]
[1758292171503,0.8142,4536.5,4536.4,0.3964]
[1758292171697,0.7019,4536.2,4536.1,3.2078]
[1758292171889,0.1278,4536.0,4535.6,3.83785]
[1758292172088,0.8297,4536.0,4535.9,0.2046]
[1758292172295,1.0719881,4536.0,4535.9,0.2046]
[1758292175096,1.0719881,4536.0,4535.9,0.60123]
[1758292175297,1.0719881,4536.0,4535.6,3.60445]
[1758292175597,0.7019,4535.7,4535.6,3.80905]
[1758292175799,0.7019,4535.7,4535.6,4.01885]
[1758292176300,0.7019,4535.7,4535.6,4.25225]
[1758292176495,0.499,4535.7,4535.6,4.25225]
[1758292176695,0.1278,4536.0,4535.9,0.81103]
[1758292176895,0.1278,4536.0,4535.9,1.04443]
[1758292176896,0.4338,4536.0,4535.9,1.04443]
[1758292177091,0.86893829,4536.0,4535.9,1.04443]
[1758292177292,0.86893829,4536.0,4535.9,0.81103]
[1758292177897,1.07183829,4536.0,4535.9,0.81103]
[1758292178298,1.07183829,4536.0,4535.9,1.04443]
[1758292178494,1.07183829,4536.0,4535.9,0.81103]
[1758292180302,0.24213829,4536.0,4535.9,1.04443]
[1758292180501,0.417,4536.4,4536.3,0.81099]
[1758292180800,0.86193839,4536.4,4536.3,0.81099]
[1758292180995,1.16793839,4536.4,4536.3,0.60119]
[1758292181197,1.16793839,4536.4,4536.3,0.2046]
[1758292181500,1.16793839,4536.4,4536.3,0.60119]
[1758292184297,0.54803839,4536.4,4536.3,1.04439]
[1758292185003,0.94393839,4536.4,4536.3,0.81099]
[1758292185701,0.74103839,4536.4,4536.3,1.04439]
[1758292185999,0.54803839,4536.4,4536.3,1.04439]
[1758292188505,0.74103839,4536.4,4536.3,1.04439]
[1758292188900,0.94393839,4536.4,4536.3,0.81099]
[1758292190105,0.94393839,4536.4,4536.3,0.39659]
[1758292190605,0.94393839,4536.4,4536.3,0.60119]
[1758292191501,0.94393839,4536.4,4536.3,1.04439]
[1758292193613,0.94393839,4536.4,4536.3,0.81099]
[1758292195515,0.7019,4536.4,4536.3,0.81099]
[1758292195714,0.94136538,4536.4,4536.3,0.60119]
[1758292197007,1.16536538,4536.4,4536.3,0.81099]
[1758292197203,1.16536538,4536.4,4536.3,0.60119]
[1758292197616,0.73846538,4536.4,4536.3,1.04439]
[1758292197814,0.94136538,4536.4,4536.3,0.81099]
[1758292198012,0.94136538,4536.4,4536.3,1.04439]
[1758292198309,1.70271381,4536.4,4536.3,0.60119]
[1758292199016,1.70271381,4536.4,4536.2,3.60439]
[1758292199214,0.7213,4535.8,4535.7,3.4002]
[1758292199513,0.96076538,4535.8,4535.7,3.79684]
[1758292200619,0.96076538,4535.8,4535.7,3.60444]
[1758292201418,0.96076538,4535.8,4535.7,3.79684]
[1758292204827,0.96076538,4535.8,4535.7,3.4002]
[1758292205032,0.96076538,4535.8,4535.7,3.2078]
[1758292205325,0.96076538,4535.8,4535.7,3.79684]
[1758292207029,0.96076538,4535.8,4535.7,4.22994]
[1758292207326,0.55756538,4535.8,4535.7,4.22994]
[1758292207922,0.75306538,4535.8,4535.7,4.22994]
[1758292208630,0.96076538,4535.8,4535.7,3.99644]
[1758292209330,0.55756538,4535.8,4535.7,4.22994]
[1758292209524,0.23946538,4535.8,4535.7,4.22994]
[1758292209723,0.8491,4536.5,4536.4,0.58898]
[1758292209927,1.64755392,4536.5,4536.4,0.58898]